[Event "18th Izmir Open 2019"]
[Site "Izmir"]
[Date "2019.09.03"]
[Round "2.7"]
[White "Isik, Alparslan"]
[Black "Sircan, Ahmet Kursat"]
[Result "1-0"]
[ECO "E73"]
[WhiteElo "2200"]
[BlackElo "1634"]
[Annotator "ChessBase"]
[PlyCount "97"]
[EventDate "2019.09.02"]
[EventType "swiss"]
[EventCountry "TUR"]
[SourceTitle "playchess.com"]
[Source "ChessBase"]
[SourceQuality "1"]
[TimeControl "5400+30"]

1. d4 {[%emt 0:17:30]} Nf6 {[%emt 0:28:30]} 2. c4 {[%emt 0:00:30]} g6 {[%emt 0:00:30]} 3. Nc3 {[%emt 0:00:30]} Bg7 {[%emt 0:00:30]} 4. e4 {[%emt 0:00:30]} d6 {[%emt 0:00:30]} 5. Be2 {[%emt 0:00:30]} O-O {[%emt 0:00:30]} 6. Be3 {[%emt 0:00:30]} Na6 {[%emt 0:01:30]} 7. Qd2 {[%emt 0:00:30]} c5 {[%emt 0:00:30]} 8. d5 {[%emt 0:00:30]} Nc7 {[%emt 0:00:30]} 9. h3 {[%emt 0:00:30]} Bd7 {[%emt 0:03:30]} 10. Nf3 {[%emt 0:00:30]} a6 {[%emt 0:00:00]} 11. e5 {[%emt 0:01:30]} Nfe8 {[%emt 0:00:00]} 12. exd6 {[%emt 0:00:30]} exd6 {[%emt 0:00:30]} 13. O-O {[%emt 0:00:30]} b5 {[%emt 0:00:30]} 14. Bg5 {[%emt 0:02:30]} f6 {[%emt 0:12:30]} 15. Bf4 {[%emt 0:00:30]} bxc4 {[%emt 0:06:30]} 16. a4 {[%emt 0:07:30]} Rb8 {[%emt 0:07:30]} 17. Bxc4 {[%emt 0:01:30]} Rb4 {[%emt 0:01:30]} 18. b3 {[%emt 0:00:30]} g5 {[%emt 0:03:30]} 19. Bh2 {[%emt 0:08:30]} f5 {[%emt 0:03:30]} 20. Rac1 {[%emt 0:03:30]} h6 {[%emt 0:04:30]} 21. Ne1 {[%emt 0:04:30]} f4 {[%emt 0:05:06]} 22. Nd3 {[%emt 0:03:30]} Rb8 {[%emt 0:00:09]} 23. Rfe1 {[%emt 0:00:30]} Qf6 {[%emt 0:04:38]} 24. Ne4 {[%emt 0:08:30]} Qd4 {[%emt 0:00:04]} 25. Qa5 {[%emt 0:03:30]} Kh8 {[%emt 0:08:34]} 26. Rcd1 {[%emt 0:01:30]} Bf5 {[%emt 0:04:34]} 27. Nxf4 {[%emt 0:01:30]} Qxd1 {[%emt 0:01:59]} 28. Rxd1 {[%emt 0:00:30]} Bxe4 {[%emt 0:00:08]} 29. Ne6 {[%emt 0:01:30]} Nxe6 {[%emt 0:00:01]} 30. dxe6 {[%emt 0:00:30]} Bd4 {[%emt 0:01:21]} 31. Rxd4 {[%emt 0:00:30]} cxd4 {[%emt 0:00:13]} 32. Bxd6 {[%emt 0:00:00]} Nxd6 {[%emt 0:01:04]} 33. Qe5+ {[%emt 0:00:00]} Kh7 {[%emt 0:00:27]} 34. Qxd6 {[%emt 0:00:00]} Bg6 {[%emt 0:00:51]} 35. Qd7+ {[%emt 0:00:00]} Kh8 {[%emt 0:00:10]} 36. Qxd4+ {[%emt 0:00:30]} Kh7 {[%emt 0:00:18]} 37. Qa7+ {[%emt 0:00:30]} Kh8 {[%emt 0:00:02]} 38. Qxa6 {[%emt 0:00:30]} Rf6 {[%emt 0:01:00]} 39. Qa7 {[%emt 0:00:30]} Re8 {[%emt 0:00:45]} 40. a5 {[%emt 0:01:30]} Bf5 {[%emt 0:00:56]} 41. Qd7 {[%emt 0:00:30]} Rexe6 {[%emt 0:00:24]} 42. Bxe6 {[%emt 0:00:30]} Rxe6 {[%emt 0:00:11]} 43. Qd8+ {[%emt 0:00:30]} Kg7 {[%emt 0:00:10]} 44. b4 {[%emt 0:00:30]} Kf7 {[%emt 0:00:23]} 45. b5 {[%emt 0:00:30]} Re8 {[%emt 0:00:16]} 46. Qd5+ {[%emt 0:00:30]} Be6 {[%emt 0:00:12]} 47. Qf3+ {[%emt 0:00:00]} Ke7 {[%emt 0:00:36]} 48. a6 {[%emt 0:00:00]} Kd6 {[%emt 0:00:14]} 49. Qc6+ {[%emt 0:00:30]} 1-0

[Event "18th Izmir Open 2019"]
[Site "Izmir"]
[Date "2019.09.03"]
[Round "3.1"]
[White "Taspinar, Yanki"]
[Black "Shanava, Konstantine"]
[Result "1-0"]
[ECO "B90"]
[WhiteElo "1970"]
[BlackElo "2500"]
[Annotator "RC"]
[PlyCount "83"]
[EventDate "2019.09.02"]
[EventType "swiss"]
[EventCountry "TUR"]
[SourceTitle "playchess.com"]
[Source "ChessBase"]
[SourceQuality "1"]
[TimeControl "5400+30"]

1. e4 {[%emt 0:02:30]} c5 {[%emt 0:00:30]} 2. Nf3 {[%emt 0:00:30]} Nc6 {[%emt 0:00:00]} 3. d4 {[%emt 0:00:00]} cxd4 {[%emt 0:00:00]} 4. Nxd4 {[%emt 0:00:00]} Nf6 {[%emt 0:00:00]} 5. Nc3 {[%emt 0:00:30]} d6 {[%emt 0:00:00]} 6. Be3 {[%emt 0:00:30]} a6 {[%emt 0:02:30]} 7. f3 {[%emt 0:00:30]} e5 {[%emt 0:00:30]} 8. Nb3 {[%emt 0:00:00]} Be7 {[%emt 0:00:30]} 9. Qd2 {[%emt 0:00:00]} Be6 {[%emt 0:00:30]} 10. O-O-O {[%emt 0:00:30]} Rc8 {[%emt 0:00:30]} 11. g4 {[%emt 0:03:30]} Na5 {[%emt 0:01:30]} 12. Kb1 {[%emt 0:00:30]} h6 {[%emt 0:01:30]} 13. Nd5 {[%emt 0:09:30]} Nxd5 {[%emt 0:03:30]} 14. exd5 {[%emt 0:00:00]} Nxb3 {[%emt 0:00:30]} 15. axb3 {[%emt 0:01:00]} Bd7 {[%emt 0:00:00]} 16. Be2 {[%emt 0:00:30]} h5 {[%emt 0:15:00]} 17. h3 {[%emt 0:05:30]} f5 {[%emt 0:00:30]} 18. f4 {[%emt 0:06:30]} e4 {[%emt 0:07:30]} 19. Rhg1 {[%emt 0:05:30]} Bf6 {[%emt 0:10:30]} 20. gxh5 {[%emt 0:03:30]} Kf8 {[%emt 0:00:30]} 21. Bd4 {[%emt 0:04:30]} Be8 {[%emt 0:04:30]} 22. Bxf6 {[%emt 0:01:30]} gxf6 {[%emt 0:00:30]} 23. Rg3 {[%emt 0:02:30]} Bf7 {[%emt 0:00:30]} 24. Rdg1 {[%emt 0:01:30]} Qb6 {[%emt 0:03:30]} 25. c4 {[%emt 0:06:30]} a5 {[%emt 0:03:30]} 26. Qc3 {[%emt 0:01:30]} Ke7 {[%emt 0:00:00]} 27. Rg7 {[%emt 0:07:30]} Qb4 {[%emt 0:00:00]} 28. Qd4 {[%emt 0:01:30]} Qc5 {[%emt 0:02:30]} 29. Qc3 {[%emt 0:01:30]} Qf2 {[%emt 0:09:30]} 30. R1g6 {[%emt 0:01:30]} Qh4 {[%emt 0:00:00]} 31. Qd4 {[%emt 0:05:30]} Rc7 {[%emt 0:13:00]} 32. Ka2 {[%emt 0:04:30]} Ra8 {[%emt 0:03:09]} 33. h6 {[%emt 0:04:30]} Rf8 {[%emt 0:02:07]} 34. h7 {[%emt 0:02:25]} Rh8 {[%emt 0:04:07]} 35. Bh5 {[%emt 0:01:09]} Kf8 {[%emt 0:02:37]} 36. Rxf6 {[%emt 0:00:33]} Qxh5 {[%emt 0:01:44]} 37. Rfxf7+ {[%emt 0:01:24]} Rxf7 {[%emt 0:02:59]} 38. Rxf7+ {[%emt 0:00:30]} Kxf7 {[%emt 0:00:30]} 39. Qxh8 {[%emt 0:00:30]} Qg6 {[%emt 0:00:30]} 40. c5 {[%emt 0:00:34]} dxc5 {[%emt 0:02:43]} 41. d6 {[%emt 0:00:25]} a4 {[%emt 0:00:25]} 42. Qg8+ {[%emt 0:00:12]} 1-0

[Event "18th Izmir Open 2019"]
[Site "Izmir"]
[Date "2019.09.03"]
[Round "3.6"]
[White "Demir, Baran"]
[Black "Isik, Alparslan"]
[Result "1-0"]
[ECO "A42"]
[WhiteElo "1859"]
[BlackElo "2200"]
[Annotator "NA"]
[PlyCount "68"]
[EventDate "2019.09.02"]
[EventType "swiss"]
[EventCountry "TUR"]
[SourceTitle "playchess.com"]
[Source "ChessBase"]
[SourceQuality "1"]
[TimeControl "5400+30"]

1. c4 {[%emt 0:02:30]} g6 {[%emt 0:00:30]} 2. e4 {[%emt 0:02:30]} Bg7 {[%emt 0:00:30]} 3. d4 {[%emt 0:00:30]} d6 {[%emt 0:00:30]} 4. Nc3 {[%emt 0:00:00]} e5 {[%emt 0:01:30]} 5. d5 {[%emt 0:02:00]} Ne7 {[%emt 0:02:30]} 6. h3 {[%emt 0:00:30]} O-O {[%emt 0:00:30]} 7. g4 {[%emt 0:06:30]} a5 {[%emt 0:05:30]} 8. Nge2 {[%emt 0:00:30]} Na6 {[%emt 0:02:30]} 9. Ng3 {[%emt 0:01:30]} Nc5 {[%emt 0:02:30]} 10. Be3 {[%emt 0:02:30]} Bd7 {[%emt 0:00:30]} 11. Qd2 {[%emt 0:01:30]} c6 {[%emt 0:08:30]} 12. Be2 {[%emt 0:00:30]} a4 {[%emt 0:02:30]} 13. h4 {[%emt 0:02:30]} cxd5 {[%emt 0:01:30]} 14. cxd5 {[%emt 0:00:30]} Qa5 {[%emt 0:03:30]} 15. h5 {[%emt 0:01:30]} b5 {[%emt 0:07:30]} 16. Bh6 {[%emt 0:09:30]} a3 {[%emt 0:13:30]} 17. hxg6 {[%emt 0:11:30]} fxg6 {[%emt 0:00:30]} 18. b3 {[%emt 0:07:30]} Bxh6 {[%emt 0:01:30]} 19. Rxh6 {[%emt 0:02:30]} Rac8 {[%emt 0:09:30]} 20. Rc1 {[%emt 0:01:30]} Nb7 {[%emt 0:03:30]} 21. Nf5 {[%emt 0:02:30]} Nxf5 {[%emt 0:07:30]} 22. gxf5 {[%emt 0:01:30]} Kg7 {[%emt 0:00:30]} 23. Rh3 {[%emt 0:03:30]} h5 {[%emt 0:05:03]} 24. Rxh5 {[%emt 0:00:30]} Rf6 {[%emt 0:16:06]} 25. Qh6+ {[%emt 0:14:30]} Kf7 {[%emt 0:00:00]} 26. fxg6+ {[%emt 0:00:30]} Rxg6 {[%emt 0:02:11]} 27. Qh7+ {[%emt 0:00:00]} Rg7 {[%emt 0:01:10]} 28. Rf5+ {[%emt 0:00:00]} Bxf5 {[%emt 0:00:56]} 29. Qxf5+ {[%emt 0:00:30]} Ke7 {[%emt 0:00:00]} 30. Qxc8 {[%emt 0:00:00]} Nc5 {[%emt 0:00:12]} 31. Kf1 {[%emt 0:04:00]} Rf7 {[%emt 0:01:49]} 32. Nxb5 {[%emt 0:02:19]} Rf8 {[%emt 0:00:58]} 33. Qg4 {[%emt 0:00:59]} Qd2 {[%emt 0:00:27]} 34. Rxc5 {[%emt 0:00:19]} dxc5 {[%emt 0:00:24]} 1-0

[Event "18th Izmir Open 2019"]
[Site "Izmir"]
[Date "2019.09.03"]
[Round "3.7"]
[White "Annaberdiyev, Babageldi"]
[Black "Asilkefeli, Hasan"]
[Result "1-0"]
[ECO "A08"]
[WhiteElo "2205"]
[BlackElo "1925"]
[Annotator "NA"]
[PlyCount "139"]
[EventDate "2019.09.02"]
[EventType "swiss"]
[EventCountry "TUR"]
[SourceTitle "playchess.com"]
[Source "ChessBase"]
[SourceQuality "1"]
[TimeControl "5400+30"]

1. e4 {[%emt 0:00:30]} c5 {[%emt 0:00:30]} 2. Nf3 {[%emt 0:00:00]} Nc6 {[%emt 0:00:00]} 3. d3 {[%emt 0:00:00]} g6 {[%emt 0:00:00]} 4. g3 {[%emt 0:00:30]} Bg7 {[%emt 0:00:30]} 5. Bg2 {[%emt 0:00:00]} Nf6 {[%emt 0:01:30]} 6. O-O {[%emt 0:00:00]} d5 {[%emt 0:03:30]} 7. Nbd2 {[%emt 0:00:30]} O-O {[%emt 0:01:30]} 8. Re1 {[%emt 0:00:00]} d4 {[%emt 0:10:30]} 9. a4 {[%emt 0:00:00]} e5 {[%emt 0:00:30]} 10. Nc4 {[%emt 0:00:30]} Ne8 {[%emt 0:00:30]} 11. b3 {[%emt 0:01:30]} Nd6 {[%emt 0:01:30]} 12. Nfd2 {[%emt 0:00:30]} Be6 {[%emt 0:25:30]} 13. Nxd6 {[%emt 0:14:30]} Qxd6 {[%emt 0:00:30]} 14. Nc4 {[%emt 0:00:30]} Qc7 {[%emt 0:00:30]} 15. f4 {[%emt 0:00:30]} f6 {[%emt 0:00:30]} 16. Rf1 {[%emt 0:00:30]} a6 {[%emt 0:00:30]} 17. f5 {[%emt 0:00:30]} Bxc4 {[%emt 0:07:30]} 18. bxc4 {[%emt 0:00:30]} g5 {[%emt 0:00:00]} 19. Bd2 {[%emt 0:02:30]} a5 {[%emt 0:02:00]} 20. Bf3 {[%emt 0:00:30]} Kf7 {[%emt 0:15:30]} 21. Kg2 {[%emt 0:00:30]} Ke7 {[%emt 0:00:00]} 22. Rh1 {[%emt 0:00:30]} Kd6 {[%emt 0:03:00]} 23. Qb1 {[%emt 0:00:30]} Nb4 {[%emt 0:02:30]} 24. h4 {[%emt 0:00:30]} h6 {[%emt 0:01:30]} 25. Qb3 {[%emt 0:00:30]} Kc6 {[%emt 0:04:07]} 26. Rh2 {[%emt 0:00:30]} b6 {[%emt 0:00:29]} 27. Rah1 {[%emt 0:00:30]} Rh8 {[%emt 0:01:09]} 28. Bh5 {[%emt 0:00:30]} Qd7 {[%emt 0:00:43]} 29. Kf2 {[%emt 0:00:30]} Qe7 {[%emt 0:00:38]} 30. Ke1 {[%emt 0:00:30]} Qd7 {[%emt 0:00:14]} 31. Kd1 {[%emt 0:00:30]} Qe7 {[%emt 0:00:41]} 32. Kc1 {[%emt 0:00:30]} Qd7 {[%emt 0:00:28]} 33. Kb2 {[%emt 0:00:30]} Qe7 {[%emt 0:00:04]} 34. Qa3 {[%emt 0:00:30]} Qd7 {[%emt 0:00:12]} 35. Qa1 {[%emt 0:00:30]} Qe7 {[%emt 0:00:15]} 36. Bg6 {[%emt 0:00:30]} Kd6 {[%emt 0:05:08]} 37. hxg5 {[%emt 0:01:30]} hxg5 {[%emt 0:00:20]} 38. Rh7 {[%emt 0:00:30]} Rxh7 {[%emt 0:01:12]} 39. Rxh7 {[%emt 0:00:30]} Rh8 {[%emt 0:00:16]} 40. Qh1 {[%emt 0:02:30]} Qf8 {[%emt 0:01:36]} 41. Qh5 {[%emt 0:05:30]} Rxh7 {[%emt 0:00:55]} 42. Bxh7 {[%emt 0:00:30]} Bh6 {[%emt 0:00:36]} 43. Qg6 {[%emt 0:01:30]} Ke7 {[%emt 0:00:07]} 44. Bg8 {[%emt 0:03:30]} Qg7 {[%emt 0:04:24]} 45. Bd5 {[%emt 0:00:30]} Qxg6 {[%emt 0:01:02]} 46. fxg6 {[%emt 0:00:30]} Bg7 {[%emt 0:00:14]} 47. Bxb4 {[%emt 0:03:30]} axb4 {[%emt 0:01:24]} 48. Kb3 {[%emt 0:00:30]} Kd6 {[%emt 0:00:43]} 49. a5 {[%emt 0:00:30]} bxa5 {[%emt 0:02:11]} 50. Ka4 {[%emt 0:00:00]} Bh6 {[%emt 0:00:00]} 51. Kxa5 {[%emt 0:00:00]} Bg7 {[%emt 0:00:27]} 52. Kb6 {[%emt 0:00:30]} Bf8 {[%emt 0:00:16]} 53. Kb7 {[%emt 0:00:00]} Kd7 {[%emt 0:02:54]} 54. Bc6+ {[%emt 0:01:00]} Kd8 {[%emt 0:01:28]} 55. Ba4 {[%emt 0:00:30]} Ke7 {[%emt 0:00:12]} 56. Kc6 {[%emt 0:00:30]} Ke6 {[%emt 0:00:09]} 57. Kc7 {[%emt 0:00:30]} f5 {[%emt 0:01:12]} 58. Bd7+ {[%emt 0:00:30]} Kf6 {[%emt 0:00:05]} 59. Bxf5 {[%emt 0:00:30]} Bg7 {[%emt 0:00:05]} 60. Kc6 {[%emt 0:01:30]} Bf8 {[%emt 0:00:06]} 61. g4 {[%emt 0:00:30]} Be7 {[%emt 0:02:17]} 62. Kd5 {[%emt 0:00:30]} Bf8 {[%emt 0:00:02]} 63. Be6 {[%emt 0:02:30]} Kxg6 {[%emt 0:00:25]} 64. Kxe5 {[%emt 0:00:00]} Kg7 {[%emt 0:00:14]} 65. Bd5 {[%emt 0:00:00]} Be7 {[%emt 0:00:03]} 66. Ke6 {[%emt 0:00:30]} Kf8 {[%emt 0:00:01]} 67. Bc6 {[%emt 0:00:30]} Bd8 {[%emt 0:00:07]} 68. Kd7 {[%emt 0:02:30]} Bf6 {[%emt 0:00:07]} 69. Bd5 {[%emt 0:00:00]} Be7 {[%emt 0:00:16]} 70. e5 {[%emt 0:00:00]} 1-0

[Event "18th Izmir Open 2019"]
[Site "Izmir"]
[Date "2019.09.03"]
[Round "3.8"]
[White "Gonullu, Muhammed Sinan"]
[Black "Yilmaz, Turhan"]
[Result "1/2-1/2"]
[ECO "A45"]
[WhiteElo "1796"]
[BlackElo "2180"]
[Annotator "NA"]
[PlyCount "146"]
[EventDate "2019.09.02"]
[EventType "swiss"]
[EventCountry "TUR"]
[SourceTitle "playchess.com"]
[Source "ChessBase"]
[SourceQuality "1"]
[TimeControl "5400+30"]

1. d4 {[%emt 0:02:30]} Nf6 {[%emt 0:10:30]} 2. Bg5 {[%emt 0:00:30]} g6 {[%emt 0:00:30]} 3. Bxf6 {[%emt 0:00:30]} exf6 {[%emt 0:00:00]} 4. e3 {[%emt 0:00:00]} f5 {[%emt 0:00:00]} 5. g3 {[%emt 0:00:00]} Bg7 {[%emt 0:00:30]} 6. Bg2 {[%emt 0:00:00]} O-O {[%emt 0:00:00]} 7. Ne2 {[%emt 0:00:00]} d6 {[%emt 0:00:00]} 8. O-O {[%emt 0:00:30]} Re8 {[%emt 0:00:30]} 9. c4 {[%emt 0:00:00]} c6 {[%emt 0:00:30]} 10. Nbc3 {[%emt 0:00:00]} Nd7 {[%emt 0:00:00]} 11. Qd3 {[%emt 0:00:00]} Nf6 {[%emt 0:00:00]} 12. b4 {[%emt 0:00:00]} Bd7 {[%emt 0:00:00]} 13. a4 {[%emt 0:00:00]} a5 {[%emt 0:00:00]} 14. b5 {[%emt 0:00:00]} Qc7 {[%emt 0:00:30]} 15. Rab1 {[%emt 0:00:30]} h5 {[%emt 0:00:00]} 16. Rb2 {[%emt 0:00:30]} h4 {[%emt 0:03:00]} 17. bxc6 {[%emt 0:04:30]} bxc6 {[%emt 0:00:30]} 18. Rfb1 {[%emt 0:00:30]} hxg3 {[%emt 0:00:30]} 19. hxg3 {[%emt 0:00:30]} Ra7 {[%emt 0:00:30]} 20. d5 {[%emt 0:00:30]} c5 {[%emt 0:00:30]} 21. Nb5 {[%emt 0:00:30]} Bxb5 {[%emt 0:00:30]} 22. Rxb5 {[%emt 0:00:30]} Ng4 {[%emt 0:00:30]} 23. Qb3 {[%emt 0:00:30]} Qe7 {[%emt 0:00:30]} 24. Nf4 {[%emt 0:00:30]} Qf6 {[%emt 0:07:30]} 25. Rb8 {[%emt 0:00:30]} Ra8 {[%emt 0:00:30]} 26. Rxa8 {[%emt 0:02:30]} Rxa8 {[%emt 0:03:30]} 27. Bf3 {[%emt 0:00:30]} Ne5 {[%emt 0:06:30]} 28. Be2 {[%emt 0:00:30]} Bh6 {[%emt 0:02:30]} 29. Ng2 {[%emt 0:01:30]} g5 {[%emt 0:01:30]} 30. f4 {[%emt 0:01:30]} Ng6 {[%emt 0:00:30]} 31. Bd3 {[%emt 0:00:30]} gxf4 {[%emt 0:00:30]} 32. exf4 {[%emt 0:03:30]} Kh8 {[%emt 0:01:30]} 33. Qc2 {[%emt 0:00:30]} Ne7 {[%emt 0:01:30]} 34. Qb2 {[%emt 0:00:30]} Bg7 {[%emt 0:01:30]} 35. Qxf6 {[%emt 0:00:30]} Bxf6 {[%emt 0:00:00]} 36. Rb6 {[%emt 0:03:30]} Rd8 {[%emt 0:00:00]} 37. Kf2 {[%emt 0:00:30]} Kg7 {[%emt 0:00:30]} 38. Rb5 {[%emt 0:00:30]} Bc3 {[%emt 0:00:30]} 39. Nh4 {[%emt 0:00:30]} Kf6 {[%emt 0:00:30]} 40. Rb7 {[%emt 0:00:30]} Bb4 {[%emt 0:02:30]} 41. Nf3 {[%emt 0:00:30]} Ng8 {[%emt 0:00:30]} 42. Ng5 {[%emt 0:02:30]} Nh6 {[%emt 0:04:30]} 43. Be2 {[%emt 0:00:30]} Bc3 {[%emt 0:00:30]} 44. Bh5 {[%emt 0:00:00]} Bd4+ {[%emt 0:00:30]} 45. Kg2 {[%emt 0:01:00]} Re8 {[%emt 0:02:30]} 46. Nxf7 {[%emt 0:00:30]} Ng4 {[%emt 0:00:30]} 47. Bxg4 {[%emt 0:00:30]} fxg4 {[%emt 0:00:30]} 48. Nxd6 {[%emt 0:03:30]} Re1 {[%emt 0:02:30]} 49. Rf7+ {[%emt 0:04:30]} Kg6 {[%emt 0:00:30]} 50. f5+ {[%emt 0:00:30]} Kh6 {[%emt 0:02:30]} 51. Nb5 {[%emt 0:03:30]} Rg1+ {[%emt 0:02:30]} 52. Kh2 {[%emt 0:00:00]} Rd1 {[%emt 0:00:00]} 53. Nxd4 {[%emt 0:06:00]} Rxd4 {[%emt 0:00:00]} 54. Rc7 {[%emt 0:00:30]} Kg5 {[%emt 0:07:30]} 55. Rxc5 {[%emt 0:00:30]} Kxf5 {[%emt 0:00:00]} 56. d6+ {[%emt 0:00:30]} Ke6 {[%emt 0:00:00]} 57. Rxa5 {[%emt 0:01:30]} Rxc4 {[%emt 0:01:30]} 58. Ra8 {[%emt 0:04:30]} Kxd6 {[%emt 0:01:30]} 59. a5 {[%emt 0:00:30]} Ra4 {[%emt 0:00:30]} 60. Kg2 {[%emt 0:01:30]} Ra2+ {[%emt 0:00:00]} 61. Kf1 {[%emt 0:00:00]} Kc6 {[%emt 0:01:00]} 62. a6 {[%emt 0:00:00]} Kb6 {[%emt 0:02:30]} 63. a7 {[%emt 0:00:30]} Ra4 {[%emt 0:04:30]} 64. Kf2 {[%emt 0:00:30]} Kb7 {[%emt 0:00:30]} 65. Rf8 {[%emt 0:00:30]} Kxa7 {[%emt 0:00:30]} 66. Rf4 {[%emt 0:00:30]} Ra2+ {[%emt 0:00:00]} 67. Ke1 {[%emt 0:00:00]} Kb6 {[%emt 0:00:00]} 68. Rxg4 {[%emt 0:00:00]} Kc5 {[%emt 0:00:00]} 69. Rf4 {[%emt 0:00:00]} Kd5 {[%emt 0:00:00]} 70. Kf1 {[%emt 0:00:00]} Ke5 {[%emt 0:00:30]} 71. Rf8 {[%emt 0:00:30]} Ke6 {[%emt 0:00:00]} 72. g4 {[%emt 0:00:30]} Ra4 {[%emt 0:00:00]} 73. g5 {[%emt 0:00:30]} Rg4 {[%emt 0:00:30]} 1/2-1/2

[Event "18th Izmir Open 2019"]
[Site "Izmir"]
[Date "2019.09.03"]
[Round "3.9"]
[White "Demirbag, Alihan"]
[Black "Onturk, Senan Utku"]
[Result "1-0"]
[ECO "A34"]
[WhiteElo "2121"]
[BlackElo "1797"]
[Annotator "NA"]
[PlyCount "43"]
[EventDate "2019.09.02"]
[EventType "swiss"]
[EventCountry "TUR"]
[SourceTitle "playchess.com"]
[Source "ChessBase"]
[SourceQuality "1"]
[TimeControl "5400+30"]

1. c4 {[%emt 0:00:30]} Nf6 {[%emt 0:01:30]} 2. Nc3 {[%emt 0:00:00]} d5 {[%emt 0:00:30]} 3. cxd5 {[%emt 0:00:00]} Nxd5 {[%emt 0:00:00]} 4. g3 {[%emt 0:00:30]} g6 {[%emt 0:02:00]} 5. Bg2 {[%emt 0:00:00]} Nxc3 {[%emt 0:00:30]} 6. bxc3 {[%emt 0:00:00]} Bg7 {[%emt 0:00:00]} 7. Nf3 {[%emt 0:01:30]} O-O {[%emt 0:01:00]} 8. O-O {[%emt 0:00:00]} c5 {[%emt 0:00:00]} 9. Rb1 {[%emt 0:02:00]} Nc6 {[%emt 0:01:00]} 10. Rb5 {[%emt 0:05:30]} c4 {[%emt 0:06:30]} 11. Qa4 {[%emt 0:06:30]} a6 {[%emt 0:00:30]} 12. Rc5 {[%emt 0:10:30]} b5 {[%emt 0:11:30]} 13. Rxb5 {[%emt 0:00:30]} axb5 {[%emt 0:00:00]} 14. Qxa8 {[%emt 0:00:30]} Qb6 {[%emt 0:00:00]} 15. Qa3 {[%emt 0:01:30]} Bb7 {[%emt 0:00:30]} 16. d4 {[%emt 0:08:30]} cxd3 {[%emt 0:00:30]} 17. exd3 {[%emt 0:00:00]} b4 {[%emt 0:11:30]} 18. cxb4 {[%emt 0:00:00]} Ra8 {[%emt 0:00:30]} 19. Qb3 {[%emt 0:00:30]} Nd4 {[%emt 0:00:00]} 20. Nxd4 {[%emt 0:00:30]} Bxg2 {[%emt 0:00:00]} 21. Kxg2 {[%emt 0:00:00]} Qxd4 {[%emt 0:00:30]} 22. Be3 {[%emt 0:01:00]} 1-0

[Event "18th Izmir Open 2019"]
[Site "Izmir"]
[Date "2019.09.04"]
[Round "4.5"]
[White "Celiker, Yakup"]
[Black "Annaberdiyev, Babageldi"]
[Result "0-1"]
[ECO "B50"]
[WhiteElo "1940"]
[BlackElo "2205"]
[Annotator "ChessBase"]
[PlyCount "106"]
[EventDate "2019.09.02"]
[EventType "swiss"]
[EventCountry "TUR"]
[SourceTitle "playchess.com"]
[Source "ChessBase"]
[SourceQuality "1"]
[TimeControl "5400+30"]

1. e4 {[%emt 0:02:30]} c5 {[%emt 0:00:30]} 2. Nf3 {[%emt 0:00:30]} Nc6 {[%emt 0:00:00]} 3. b3 {[%emt 0:00:30]} d6 {[%emt 0:02:00]} 4. Bb2 {[%emt 0:01:30]} Nf6 {[%emt 0:00:30]} 5. Nc3 {[%emt 0:02:30]} e5 {[%emt 0:00:30]} 6. Bb5 {[%emt 0:01:30]} Bd7 {[%emt 0:00:30]} 7. O-O {[%emt 0:00:30]} Be7 {[%emt 0:00:30]} 8. d3 {[%emt 0:00:30]} a6 {[%emt 0:00:30]} 9. Bxc6 {[%emt 0:00:30]} Bxc6 {[%emt 0:00:30]} 10. Ne2 {[%emt 0:00:30]} b5 {[%emt 0:05:30]} 11. Ng3 {[%emt 0:01:30]} h5 {[%emt 0:01:30]} 12. Nf5 {[%emt 0:03:30]} Bf8 {[%emt 0:01:30]} 13. a4 {[%emt 0:05:30]} g6 {[%emt 0:03:30]} 14. Ne3 {[%emt 0:03:30]} Bh6 {[%emt 0:08:30]} 15. axb5 {[%emt 0:04:30]} axb5 {[%emt 0:05:30]} 16. Qe2 {[%emt 0:01:30]} O-O {[%emt 0:00:30]} 17. h3 {[%emt 0:03:30]} Rxa1 {[%emt 0:07:30]} 18. Rxa1 {[%emt 0:00:30]} Qe7 {[%emt 0:00:00]} 19. g3 {[%emt 0:02:30]} Ra8 {[%emt 0:00:00]} 20. Rxa8+ {[%emt 0:06:30]} Bxa8 {[%emt 0:00:30]} 21. c4 {[%emt 0:00:30]} b4 {[%emt 0:02:30]} 22. Nd2 {[%emt 0:03:30]} Qa7 {[%emt 0:00:30]} 23. Qe1 {[%emt 0:00:00]} Qa2 {[%emt 0:01:30]} 24. Qa1 {[%emt 0:02:00]} Qxa1+ {[%emt 0:00:00]} 25. Bxa1 {[%emt 0:00:30]} Nd7 {[%emt 0:01:00]} 26. Kf1 {[%emt 0:01:30]} Nb8 {[%emt 0:00:30]} 27. Ke2 {[%emt 0:00:30]} Nc6 {[%emt 0:00:00]} 28. Bb2 {[%emt 0:02:30]} Na5 {[%emt 0:00:00]} 29. Kd1 {[%emt 0:01:30]} Bb7 {[%emt 0:00:30]} 30. Kc2 {[%emt 0:00:00]} Bc8 {[%emt 0:00:00]} 31. h4 {[%emt 0:00:00]} Bh3 {[%emt 0:02:00]} 32. Nf3 {[%emt 0:00:30]} f6 {[%emt 0:00:30]} 33. Bc1 {[%emt 0:02:30]} Kf7 {[%emt 0:01:30]} 34. Bd2 {[%emt 0:00:30]} Nc6 {[%emt 0:03:30]} 35. Bc1 {[%emt 0:03:30]} Bc8 {[%emt 0:04:30]} 36. Bb2 {[%emt 0:00:00]} g5 {[%emt 0:03:30]} 37. Bc1 {[%emt 0:08:00]} g4 {[%emt 0:00:30]} 38. Ne1 {[%emt 0:01:30]} Nd4+ {[%emt 0:02:30]} 39. Kb2 {[%emt 0:00:00]} Ne2 {[%emt 0:00:30]} 40. N1c2 {[%emt 0:00:00]} f5 {[%emt 0:02:30]} 41. exf5 {[%emt 0:00:30]} e4 {[%emt 0:00:30]} 42. dxe4 {[%emt 0:01:30]} Bg7+ {[%emt 0:00:30]} 43. Kb1 {[%emt 0:00:30]} Nc3+ {[%emt 0:00:00]} 44. Ka1 {[%emt 0:00:30]} Nxe4+ {[%emt 0:01:00]} 45. Bb2 {[%emt 0:00:30]} Bxb2+ {[%emt 0:02:30]} 46. Kxb2 {[%emt 0:00:00]} Nxf2 {[%emt 0:00:00]} 47. Kc1 {[%emt 0:03:00]} Ne4 {[%emt 0:00:00]} 48. Nf1 {[%emt 0:00:30]} Bxf5 {[%emt 0:00:00]} 49. Nce3 {[%emt 0:00:30]} Be6 {[%emt 0:03:00]} 50. Kc2 {[%emt 0:01:30]} Kf6 {[%emt 0:00:30]} 51. Kd3 {[%emt 0:00:30]} Ke5 {[%emt 0:00:00]} 52. Ng2 {[%emt 0:00:30]} Bf7 {[%emt 0:00:00]} 53. Nf4 {[%emt 0:00:30]} Nxg3 {[%emt 0:01:30]} 0-1